fUST/lending_fUST_20250608
["ID","MTS","AMOUNT","RATE_DAILY","PERIOD"]
[364969260,1749365408881,5000.0,0.00017486,2]
[364969261,1749365424867,2508.45335884,0.00017486,2]
[364969268,1749365431790,-1478.06498917,0.00017486,2]
[364969296,1749365437824,-1013.48165199,0.00017486,2]
[364969297,1749365437833,-164.90024098,0.00017663,2]
[364969298,1749365437843,-300.0,0.00017699,2]
[364969299,1749365437853,-102.70835746,0.00017699,2]
[364969311,1749365442840,-277.43515683,0.00017522,2]
[364969423,1749365445949,-382.83171434,0.00017522,2]
[364969426,1749365445961,-4339.73312883,0.00017522,2]
[364969428,1749365445970,-181.49190262,0.00017663,2]
[364969430,1749365445980,-197.29164254,0.00017699,2]
[364969432,1749365445989,-748.65161167,0.000177,2]
[364969503,1749365703715,276.831423,0.00013699,2]
[364969504,1749365858724,445.58,0.00025479,120]
[364969506,1749366038823,-5000.0,0.00016491,2]
[364969507,1749366038852,-633.6886224,0.00016658,2]
[364969508,1749366038875,-158.80541481,0.000169,2]
[364969509,1749366038902,-500.0,0.00016968,2]
[364969510,1749366038928,-500.0,0.00016968,2]
[364969511,1749366038951,-500.0,0.00016968,2]
[364969512,1749366038976,-500.0,0.00016968,2]
[364969513,1749366039001,-340.0043165,0.00016968,2]
[364969514,1749366039026,-500.0,0.00016968,2]
[364969515,1749366039051,-480.97184653,0.00016968,2]
[364969516,1749366039074,-285.5850187,0.00016968,2]
[364969517,1749366039098,-24900.0,0.00016969,2]
[364969518,1749366039286,-371.09702883,0.00016999,2]
[364969519,1749366039311,-251.81851007,0.00016999,2]
[364969520,1749366039337,-500.0,0.00016999,2]
[364969521,1749366039366,-500.0,0.00016999,2]
[364969522,1749366039393,-500.0,0.00016999,2]
[364969523,1749366039423,-500.0,0.00016999,2]
[364969524,1749366039451,-164.24993311,0.00016999,2]
[364969525,1749366039480,-500.0,0.00016999,2]
[364969526,1749366039509,-500.0,0.00016999,2]
[364969527,1749366039537,-500.0,0.00016999,2]
[364969528,1749366039560,-28981.2985847,0.00017,2]
[364969529,1749366039584,-2671.7435893,0.00017534,2]
[364969530,1749366039608,-194.74739704,0.00017599,2]
[364969531,1749366039634,-30231.94827063,0.00017699,2]
[364969532,1749366039658,-34357.40466255,0.000177,2]
[364969533,1749366039682,-158.80541476,0.00017992,2]
[364969534,1749366039706,-218.46037884,0.0001823,2]
[364969535,1749366039730,-790.61169281,0.00018384,2]
[364969536,1749366039754,-207.4,0.00018812,2]
[364969537,1749366039778,-1375.96715363,0.000189,2]
[364969538,1749366039801,-158.80541476,0.00019085,2]
[364969539,1749366039824,-160.0,0.00019166,2]
[364969540,1749366039852,-500.0,0.00019166,2]
[364969541,1749366039879,-500.0,0.00019166,2]
[364969542,1749366039901,-5000.0,0.00019166,2]
[364969543,1749366039929,-500.0,0.00019166,2]
[364969544,1749366039954,-500.0,0.00019166,2]
[364969545,1749366039977,-500.0,0.00019166,2]
[364969546,1749366040001,-500.0,0.00019166,2]
[364969547,1749366040024,-500.0,0.00019166,2]
[364969548,1749366040047,-500.0,0.00019166,2]
[364969549,1749366040070,-500.0,0.00019166,2]
[364969550,1749366040093,-373.98981618,0.00019166,2]
[364969551,1749366040120,-500.0,0.00019166,2]
[364969552,1749366040143,-500.0,0.00019166,2]
[364969553,1749366040167,-500.0,0.00019166,2]
[364969554,1749366040190,-500.0,0.00019166,2]
[364969555,1749366040213,-643.70235617,0.00019166,2]
[364969556,1749366040235,-16000.0,0.00019166,2]
[364969557,1749366040258,-7291.65826633,0.00019166,2]
[364969558,1749366040280,-506.85366717,0.00019173,2]
[364969559,1749366040303,-440.0,0.00019178,2]
[364969560,1749366040329,-446.23473043,0.00019178,2]
[364969561,1749366040353,-443.14297527,0.00019178,2]
[364969562,1749366040375,-440.0,0.00019178,2]
[364969563,1749366040398,-440.0,0.00019178,2]
[364969564,1749366040422,-371.97333098,0.00019178,2]
[364969565,1749366040449,-430.0,0.00019178,2]
[364969566,1749366040473,-342.97516346,0.00019178,2]
[364969567,1749366040496,-430.0,0.00019178,2]
[364969568,1749366040520,-440.0,0.00019178,2]
[364969569,1749366040543,-430.0,0.00019178,2]
[364969570,1749366040566,-440.0,0.00019178,2]
[364969571,1749366040589,-440.0,0.00019178,2]
[364969572,1749366040612,-440.0,0.00019178,2]
[364969573,1749366040635,-430.0,0.00019178,2]
[364969574,1749366040657,-430.0,0.00019178,2]
[364969575,1749366040681,-440.0,0.00019178,2]
[364969576,1749366040704,-435.09899232,0.00019178,2]
[364969577,1749366040727,-440.0,0.00019178,2]
[364969578,1749366040751,-430.0,0.00019178,2]
[364969579,1749366040774,-440.0,0.00019178,2]
[364969580,1749366040798,-430.0,0.00019178,2]
[364969581,1749366040822,-430.0,0.00019178,2]
[364969582,1749366040853,-430.0,0.00019178,2]
[364969583,1749366040878,-440.0,0.00019178,2]
[364969584,1749366040901,-430.0,0.00019178,2]
[364969585,1749366040929,-440.0,0.00019178,2]
[364969586,1749366040952,-430.0,0.00019178,2]
[364969587,1749366040975,-440.0,0.00019178,2]
[364969588,1749366040999,-155.45241416,0.00019178,2]
[364969589,1749366041021,-430.0,0.00019178,2]
[364969590,1749366041044,-433.91666197,0.00019178,2]
[364969591,1749366041067,-430.0,0.00019178,2]
[364969592,1749366041090,-430.0,0.00019178,2]
[364969593,1749366041112,-430.0,0.00019178,2]
[364969594,1749366041135,-440.0,0.00019178,2]
[364969595,1749366041158,-430.0,0.00019178,2]
[364969596,1749366041181,-430.0,0.00019178,2]
[364969597,1749366041204,-430.0,0.00019178,2]
[364969598,1749366041226,-431.96794269,0.00019178,2]
[364969599,1749366041249,-440.0,0.00019178,2]
[364969600,1749366041272,-440.0,0.00019178,2]
[364969601,1749366041295,-430.0,0.00019178,2]
[364969602,1749366041318,-440.0,0.00019178,2]
[364969603,1749366041341,-430.0,0.00019178,2]
[364969604,1749366041364,-440.0,0.00019178,2]
[364969605,1749366041389,-414.70472296,0.00019178,2]
[364969606,1749366041413,-430.0,0.00019178,2]
[364969607,1749366041436,-498.72327715,0.00019178,2]
[364969608,1749366041461,-430.0,0.00019178,2]
[364969609,1749366041484,-430.0,0.00019178,2]
[364969610,1749366041510,-440.0,0.00019178,2]
[364969611,1749366041534,-440.0,0.00019178,2]
[364969612,1749366041558,-440.0,0.00019178,2]
[364969613,1749366041582,-440.0,0.00019178,2]
[364969614,1749366041605,-440.0,0.00019178,2]
[364969615,1749366041628,-500.0,0.00019178,2]
[364969616,1749366041652,-501.30455936,0.00019178,2]
[364969617,1749366041678,-440.0,0.00019178,2]
[364969618,1749366041702,-164.88787343,0.00019178,2]
[364969619,1749366295926,-163.4161763,0.00016161,2]
[364969620,1749366298597,-14.9389447,0.00016161,2]
[364969621,1749366310272,-183.2082641,0.00016,2]
[364969622,1749366312500,-162.94620531,0.00016,2]
[364969623,1749366314624,-295.82490863,0.00016,2]
[364969624,1749366316807,-371.3766681,0.00016,2]
[364969625,1749366317492,-74568.0,0.00016,2]
[364969626,1749366318331,-443.96974471,0.00016,2]
[364969627,1749366323242,-180.81256741,0.00016,2]
[364969629,1749366328196,-407.26157157,0.00016,2]
[364969630,1749366331662,-152.0,0.00016,2]
[364969631,1749366334279,-158.2113714,0.00016,2]
[364969632,1749366335875,-193.3401252,0.00016,2]
[364969633,1749366338660,-405.77758657,0.00016,2]
[364969634,1749366341924,-267.08857453,0.00016,2]
[364969635,1749366344065,-158.18523208,0.00016,2]
[364969636,1749366345743,-225.72729437,0.00016,2]
[364969637,1749366350806,-440.0,0.00016,2]
[364969639,1749366354002,-213.56734835,0.00016,2]
[364969640,1749366358487,-200.94979533,0.00016,2]
[364969641,1749366361289,-247.73682323,0.00016,2]
[364969642,1749366363039,-182.57529871,0.00016,2]
[364969643,1749366366275,-173.52088538,0.00016,2]
[364969644,1749366369028,-156.63888565,0.00016,2]
[364969645,1749366370589,-154.00870972,0.00016,2]
[364969646,1749366373560,-203.01044608,0.00016,2]
[364969647,1749366377639,-238.86868655,0.00016,2]
[364969648,1749366382004,-209.37251466,0.00016,2]
[364969649,1749366384710,-162.01370477,0.00016,2]
[364969650,1749366387506,-159.66683611,0.00016,2]
[364969651,1749366390176,-371.76640356,0.00016,2]
[364969652,1749366394549,-174.22238937,0.00016,2]
[364969653,1749366397717,-204.02502917,0.00016,2]
[364969654,1749366400295,-213.48860928,0.00016,2]
[364969655,1749366401944,-325.92725365,0.00016,2]
[364969656,1749366404149,-224.536575,0.00016,2]
[364969657,1749366406271,-230.41930222,0.00016,2]
[364969658,1749366407880,-173.899304,0.00016,2]
[364969659,1749366411656,-210.55479717,0.00016,2]
[364969660,1749366414304,-223.14975991,0.00016,2]
[364969661,1749366417075,-224.66716219,0.00016,2]
[364969662,1749366421950,-335.09127445,0.00016,2]
[364969663,1749366423981,-213.65266235,0.00015999,2]
[364969664,1749366428111,-178.21868232,0.00015839,2]
[364969665,1749366429802,-204.76240816,0.00015839,2]
[364969666,1749366431937,-309.45334445,0.00015839,2]
[364969667,1749366434072,-202.09550983,0.00015839,2]
[364969668,1749366435654,-180.0,0.00015839,2]
[364969669,1749366437131,-493.04410654,0.00015839,2]
[364969670,1749366437601,-278.37449426,0.00015839,2]
[364969671,1749366440428,-151.06405933,0.00015839,2]
[364969672,1749366442678,-162.41875086,0.00015839,2]
[364969673,1749366445661,-342.11648481,0.00015839,2]
[364969674,1749366447301,-153.95114488,0.00015839,2]
[364969675,1749366450779,-226.84863573,0.00015839,2]
[364969676,1749366453912,-201.85554784,0.00015839,2]
[364969677,1749366455475,-230.91,0.00015839,2]
[364969678,1749366459299,-627.59947221,0.00015839,2]
[364969679,1749366461564,-875.67865265,0.00015839,2]
[364969680,1749366463668,-181.60870613,0.00015839,2]
[364969681,1749366463693,-86.34733765,0.00015999,2]
[364969682,1749366463717,-95.19055068,0.00016,2]
[364969683,1749366466074,-227.947199,0.00016,2]
[364969684,1749366470818,-304.04355231,0.0001584,2]
[364969685,1749366473000,-254.49744474,0.0001584,2]
[364969686,1749366475549,-166.33929179,0.0001584,2]
[364969687,1749366478568,-189.59887719,0.0001584,2]
[364969688,1749366480665,-255.45969918,0.0001584,2]
[364969689,1749366482809,-163.74806093,0.0001584,2]
[364969690,1749366488358,-275.35372661,0.0001584,2]
[364969691,1749366490712,-254.77063096,0.0001584,2]
[364969692,1749366493893,-213.62075488,0.0001584,2]
[364969693,1749366496052,-163.37215916,0.0001584,2]
[364969694,1749366501554,-292.3537662,0.0001584,2]
[364969695,1749366504390,-290.0,0.0001584,2]
[364969696,1749366507161,-443.45777451,0.0001584,2]
[364969697,1749366509944,-225.07,0.0001584,2]
[364969698,1749366513048,-329.35289405,0.0001584,2]
[364969699,1749366517529,-158.62,0.0001584,2]
[364969700,1749366519568,-169.15053979,0.0001584,2]
[364969701,1749366522039,-173.0,0.0001584,2]
[364969702,1749366525901,-428.96289744,0.0001584,2]
[364969703,1749366528356,-225.8752612,0.0001584,2]
[364969704,1749366531769,-237.62205689,0.00015799,2]
[364969705,1749366533654,-18.08559384,0.00015799,2]
[364969706,1749366533680,-23.35266906,0.0001584,2]
[364969707,1749366533704,-249.40742257,0.00015899,2]
[364969708,1749366535419,-54.14649827,0.00015899,2]
[364969709,1749366535446,-300.0,0.00015999,2]
[364969710,1749366535473,-85.85350173,0.00016,2]
[364969711,1749366538924,-486.35336061,0.00016,2]
[364969712,1749366542793,-211.22775025,0.0001584,2]
[364969713,1749366545748,-194.91840564,0.0001584,2]
[364969714,1749366549572,-433.35779645,0.0001584,2]
[364969715,1749366552836,-163.82220355,0.0001584,2]
[364969716,1749366556079,-3996.67384411,0.0001584,2]
[364969717,1749366556104,-300.0,0.00015999,2]
[364969718,1749366556126,-33846.38695459,0.00016,2]
[364969719,1749366556147,-155.0,0.00016,2]
[364969720,1749366556171,-158.80541476,0.00016898,2]
[364969721,1749366556193,-300.0,0.00016998,2]
[364969722,1749366556214,-177.0,0.00016998,2]
[364969723,1749366556236,-1200.0,0.00016998,2]
[364969724,1749366596909,245.22145682,0.00017243,2]
[364969747,1749366632212,-300.0,0.00017639,2]
[364969748,1749366632226,-38.25,0.00017639,2]
[364969749,1749366632235,-3878.93403867,0.00017776,2]
[364969750,1749366632274,-650.84495871,0.00017776,2]
[364969751,1749366632285,-470.22100262,0.00017776,2]
[364969752,1749366632295,-319.93788891,0.00017955,2]
[364969753,1749366632310,-33.67746409,0.00017955,2]
[364969754,1749366632320,-676.5,0.00018479,2]
[364969755,1749366632330,-158.80541476,0.00018809,2]
[364969756,1749366632340,-300.0,0.00018899,2]
[364969757,1749366632350,-615.0,0.00018899,2]
[364969758,1749366632360,-1094.09503094,0.000189,2]
[364969759,1749366632370,-1542.42135531,0.000189,2]
[364969760,1749366633414,-3896.58270236,0.000189,2]
[364969761,1749366633424,-194.74739704,0.00019078,2]
[364969762,1749366633435,-207.4,0.00019166,2]
[364969763,1749366633444,-326.2529286,0.00019168,3]
[364969768,1749366637996,-52.6870714,0.00019168,3]
[364969769,1749366638007,-500.0,0.00019173,2]
[364969770,1749366638018,-436.04087723,0.00019177,2]
[364969771,1749366638028,-500.0,0.00019177,2]
[364969772,1749366638038,-500.0,0.00019177,2]
[364969773,1749366638048,-627.81243285,0.00019177,2]
[364969774,1749366638058,-500.0,0.00019177,2]
[364969775,1749366638068,-500.0,0.00019177,2]
[364969776,1749366638078,-500.0,0.00019177,2]
[364969777,1749366638088,-500.0,0.00019177,2]
[364969778,1749366638098,-500.0,0.00019177,2]
[364969779,1749366638108,-500.0,0.00019177,2]
[364969780,1749366638118,-500.0,0.00019177,2]
[364969781,1749366638128,-500.0,0.00019177,2]
[364969782,1749366638139,-500.0,0.00019177,2]
[364969783,1749366638148,-500.0,0.00019177,2]
[364969784,1749366638158,-500.0,0.00019177,2]
[364969786,1749366638168,-441.25098501,0.00019178,2]
[364969787,1749366638178,-440.0,0.00019178,2]
[364969788,1749366638187,-440.0,0.00019178,2]
[364969789,1749366638197,-525.63,0.00019178,2]
[364969790,1749366638207,-440.0,0.00019178,2]
[364969791,1749366638217,-500.0,0.00019178,2]
[364969792,1749366638227,-430.0,0.00019178,2]
[364969793,1749366638238,-341.83170356,0.00019178,2]
[364969794,1749366638248,-440.0,0.00019178,2]
[364969795,1749366638261,-430.0,0.00019178,2]
[364969796,1749366638272,-440.0,0.00019178,2]
[364969797,1749366638281,-430.0,0.00019178,2]
[364969798,1749366638294,-430.0,0.00019178,2]
[364969799,1749366638305,-440.0,0.00019178,2]
[364969800,1749366638316,-400.0,0.00019178,2]
[364969801,1749366638327,-420.0,0.00019178,2]
[364969802,1749366638337,-206.40813592,0.00019178,2]
[364969803,1749366638346,-440.0,0.00019178,2]
[364969804,1749366638356,-440.0,0.00019178,2]
[364969805,1749366638366,-440.0,0.00019178,2]
[364969806,1749366638375,-440.0,0.00019178,2]
[364969807,1749366638384,-430.0,0.00019178,2]
[364969808,1749366638394,-440.0,0.00019178,2]
[364969809,1749366638404,-440.0,0.00019178,2]
[364969810,1749366638413,-212.78129418,0.00019178,2]
[364969811,1749366638423,-450.22001957,0.00019178,2]
[364969812,1749366638442,-440.0,0.00019178,2]
[364969813,1749366638452,-430.0,0.00019178,2]
[364969814,1749366638462,-377.39182041,0.00019178,2]
[364969815,1749366638472,-430.0,0.00019178,2]
[364969816,1749366638482,-430.0,0.00019178,2]
[364969817,1749366638492,-440.0,0.00019178,2]
[364969818,1749366638504,-440.0,0.00019178,2]
[364969819,1749366638515,-1106.78,0.00019178,2]
[364969820,1749366638525,-1106.78,0.00019178,2]
[364969821,1749366638535,-773.19195114,0.00019178,2]
[364969822,1749366638547,-333.58804886,0.00019178,2]
[364969823,1749366638556,-1106.78,0.00019178,2]
[364969824,1749366638566,-1106.78,0.00019178,2]
[364969825,1749366638576,-1106.78,0.00019178,2]
[364969826,1749366638585,-430.0,0.00019178,2]
[364969827,1749366638594,-1059.38227971,0.00019178,2]
[364969931,1749366641344,-47.39772029,0.00019178,2]
[364969932,1749366641354,-19.75401128,0.00019178,2]
[364969945,1749366747892,262.989851,0.00013699,2]
[364969958,1749367047397,300.0,0.000191,26]
[364969961,1749367367263,1999.199999,0.00024644,30]
[364969964,1749367523042,163.51,0.00025479,120]
[364969965,1749367569564,1360.23408691,0.00024644,120]
[364969967,1749367631141,-5000.0,0.00016712,2]
[364969968,1749367631165,-500.0,0.00016881,2]
[364969969,1749367631187,-322.91806488,0.00016881,2]
[364969970,1749367631213,-330.42223437,0.00016881,2]
[364969971,1749367631234,-7287.24635434,0.00016882,2]
[364969972,1749367653117,-1758.63863955,0.00016713,2]
[364969981,1749367747116,-3241.36136045,0.00016713,2]
[364969982,1749367755968,5000.0,0.00016712,2]
[364969986,1749367765150,-300.0,0.00016881,2]
[364969987,1749367765172,-11686.08692116,0.00016882,2]
[364969988,1749367765193,-232.07598806,0.00016986,2]
[364969989,1749367765215,-181.559068,0.00017161,2]
[364969990,1749367765236,-176.807676,0.00017293,2]
[364969991,1749367765257,-359.47034678,0.00017504,2]
[364969992,1749367769087,-313.39581432,0.00017504,2]
[364969993,1749367769109,-1682.4382458,0.00017652,2]
[364969994,1749367769132,-594.0,0.00017686,2]
[364969995,1749367769156,-331.06,0.00017688,2]
[364969996,1749367769178,-19832.00083466,0.00018,2]
[364970024,1749367832300,-5000.0,0.00017329,2]
[364970026,1749367832311,-326.85,0.00017782,2]
[364970027,1749367832321,-2870.60425252,0.00018,2]
[364970028,1749367832332,-9014.47748377,0.00018,2]
[364970029,1749367832549,-3013.54370767,0.00018,2]
[364970030,1749367832559,-19002.97391388,0.00018,2]
[364970031,1749367832570,-160.0,0.00018112,2]
[364970033,1749367832581,-405.37966897,0.00018118,2]
[364970035,1749367832591,-500.0,0.00018118,2]
[364970037,1749367832601,-500.0,0.00018118,2]
[364970039,1749367832611,-500.0,0.00018118,2]
[364970041,1749367832621,-500.0,0.00018118,2]
[364970043,1749367832631,-500.0,0.00018118,2]
[364970045,1749367832640,-489.468703,0.00018118,2]
[364970046,1749367832650,-500.0,0.00018118,2]
[364970047,1749367832660,-500.0,0.00018118,2]
[364970048,1749367832669,-500.0,0.00018118,2]
[364970049,1749367832679,-500.0,0.00018118,2]
[364970050,1749367832689,-500.0,0.00018118,2]
[364970051,1749367832699,-500.0,0.00018118,2]
[364970052,1749367832710,-292.6280921,0.00018118,2]
[364970053,1749367832719,-500.0,0.00018118,2]
[364970054,1749367832729,-500.0,0.00018118,2]
[364970055,1749367832739,-500.0,0.00018118,2]
[364970056,1749367832749,-500.0,0.00018118,2]
[364970057,1749367832759,-500.0,0.00018118,2]
[364970058,1749367832773,-500.0,0.00018118,2]
[364970059,1749367832784,-24900.0,0.00018119,2]
[364970060,1749367832793,-158.80541476,0.0001834,2]
[364970061,1749367832803,-653.7,0.00018629,2]
[364970062,1749367832814,-1688.0,0.00018812,2]
[364970063,1749367832823,-207.4,0.00018812,2]
[364970064,1749367832833,-1386.19426422,0.00018867,2]
[364970065,1749367832844,-75499.18065,0.00018999,2]
[364970066,1749367832854,-6844.2806641,0.00019,2]
[364970067,1749367832864,-1315.71414568,0.00019078,2]
[364970068,1749367832874,-200.5,0.00019152,2]
[364970069,1749367832883,-5000.0,0.00019166,2]
[364970070,1749367832893,-500.0,0.00019166,2]
[364970071,1749367832903,-500.0,0.00019166,2]
[364970072,1749367832913,-500.0,0.00019166,2]
[364970073,1749367832923,-500.0,0.00019166,2]
[364970074,1749367832933,-500.0,0.00019166,2]
[364970075,1749367832943,-500.0,0.00019166,2]
[364970076,1749367832953,-500.0,0.00019166,2]
[364970077,1749367832963,-500.0,0.00019166,2]
[364970078,1749367832973,-500.0,0.00019166,2]
[364970079,1749367832983,-500.0,0.00019166,2]
[364970080,1749367832993,-500.0,0.00019166,2]
[364970081,1749367833003,-500.0,0.00019166,2]
[364970082,1749367833013,-500.0,0.00019166,2]
[364970083,1749367833023,-500.0,0.00019166,2]
[364970084,1749367833033,-500.0,0.00019166,2]
[364970085,1749367833043,-159.30376216,0.00019173,2]
[364970086,1749367833053,-503.19065093,0.00019173,2]
[364970087,1749367833063,-504.88865018,0.00019173,2]
[364970088,1749367833073,-500.0,0.00019173,2]
[364970089,1749367833082,-500.0,0.00019173,2]
[364970090,1749367833092,-503.16701715,0.00019173,2]
[364970091,1749367833102,-273.80236882,0.00019173,2]
[364970092,1749367833112,-502.08002776,0.00019173,2]
[364970093,1749367833122,-501.15305244,0.00019173,2]
[364970094,1749367833132,-504.29635508,0.00019173,2]
[364970095,1749367833143,-500.0,0.00019173,2]
[364970096,1749367833153,-502.77739451,0.00019173,2]
[364970097,1749367833163,-160.0,0.00019177,2]
[364970098,1749367833174,-206.40813593,0.00019178,2]
[364970099,1749367833184,-430.0,0.00019178,2]
[364970100,1749367833194,-430.0,0.00019178,2]
[364970101,1749367833205,-442.24007679,0.00019178,2]
[364970102,1749367833215,-488.34977376,0.00019178,2]
[364970103,1749367833225,-400.0,0.00019178,2]
[364970104,1749367833235,-440.0,0.00019178,2]
[364970105,1749367833245,-223.60752644,0.00019178,2]
[364970106,1749367833256,-440.0,0.00019178,2]
[364970107,1749367833266,-400.0,0.00019178,2]
[364970108,1749367833276,-440.0,0.00019178,2]
[364970109,1749367833285,-151.0,0.00019178,2]
[364970110,1749367833295,-151.0,0.00019178,2]
[364970111,1749367833305,-250.32829406,0.00019178,2]
[364970112,1749367833314,-430.0,0.00019178,2]
[364970113,1749367833324,-430.0,0.00019178,2]
[364970114,1749367833334,-440.0,0.00019178,2]
[364970115,1749367833344,-440.0,0.00019178,2]
[364970116,1749367833353,-373.68062164,0.00019178,2]
[364970117,1749367833363,-370.0,0.00019178,2]
[364970118,1749367833373,-374.9402806,0.00019178,2]
[364970119,1749367833382,-360.0,0.00019178,2]
[364970120,1749367833393,-440.0,0.00019178,2]
[364970121,1749367833403,-440.0,0.00019178,2]
[364970122,1749367833413,-440.0,0.00019178,2]
[364970123,1749367833423,-440.0,0.00019178,2]
[364970124,1749367833433,-435.19012237,0.00019178,2]
[364970125,1749367833442,-350.0,0.00019178,2]
[364970126,1749367833452,-437.76449362,0.00019178,2]
[364970127,1749367833462,-417.5763842,0.00019178,2]
[364970128,1749367833472,-440.0,0.00019178,2]
[364970129,1749367833482,-334.37116385,0.00019178,2]
[364970130,1749367833492,-430.0,0.00019178,2]
[364970131,1749367833501,-440.0,0.00019178,2]
[364970132,1749367833511,-430.0,0.00019178,2]
[364970133,1749367833521,-429.24794447,0.00019178,2]
[364970134,1749367833531,-440.0,0.00019178,2]
[364970135,1749367833541,-440.0,0.00019178,2]
[364970136,1749367833551,-440.0,0.00019178,2]
[364970137,1749367833560,-151.0,0.00019178,2]
[364970138,1749367833570,-151.0,0.00019178,2]
[364970139,1749367833579,-442.87053863,0.00019178,2]
[364970140,1749367833589,-412.57978074,0.00019178,2]
[364970141,1749367833599,-430.0,0.00019178,2]
[364970142,1749367833609,-440.0,0.00019178,2]
[364970143,1749367833619,-354.40109155,0.00019178,2]
[364970144,1749367833629,-440.0,0.00019178,2]
[364970145,1749367833638,-440.0,0.00019178,2]
[364970146,1749367833650,-440.0,0.00019178,2]
[364970147,1749367833659,-404.29426956,0.00019178,2]
[364970148,1749367833672,-370.0,0.00019178,2]
[364970149,1749367833686,-521.16,0.00019178,2]
[364970150,1749367833695,-225.82412333,0.00019178,2]
[364970151,1749367833705,-352.34221752,0.00019178,2]
[364970152,1749367833716,-430.0,0.00019178,2]
[364970153,1749367833726,-430.0,0.00019178,2]
[364970154,1749367833735,-440.0,0.00019178,2]
[364970155,1749367833745,-326.93239264,0.00019178,2]
[364970156,1749367833755,-440.0,0.00019178,2]
[364970157,1749367833766,-536.52557282,0.00019178,2]
[364970158,1749367833777,-406.89390943,0.00019178,2]
[364970159,1749367833787,-547.34600542,0.00019178,2]
[364970160,1749367833796,-405.33356524,0.00019178,2]
[364970161,1749367833806,-440.0,0.00019178,2]
[364970162,1749367833815,-400.0,0.00019178,2]
[364970163,1749367833824,-440.0,0.00019178,2]
[364970164,1749367833834,-440.0,0.00019178,2]
[364970165,1749367833844,-440.0,0.00019178,2]
[364970166,1749367833853,-440.0,0.00019178,2]
[364970167,1749367833864,-440.0,0.00019178,2]
[364970168,1749367833873,-440.0,0.00019178,2]
[364970169,1749367833883,-382.34454206,0.00019178,2]
[364970170,1749367833895,-430.0,0.00019178,2]
[364970171,1749367833904,-400.0,0.00019178,2]
[364970172,1749367833914,-488.79693318,0.00019178,2]
[364970173,1749367833924,-495.61111549,0.00019178,2]
[364970174,1749367833935,-440.0,0.00019178,2]
[364970175,1749367833945,-440.0,0.00019178,2]
[364970176,1749367834073,-301.52955287,0.00019178,2]
[364970177,1749367834083,-263.88027194,0.00019178,2]
[364970178,1749367834093,-440.0,0.00019178,2]
[364970179,1749367834104,-446.33880489,0.00019178,2]
[364970180,1749367834114,-154.58255204,0.00019178,2]
[364970181,1749367834124,-440.0,0.00019178,2]
[364970182,1749367834134,-403.02800479,0.00019178,2]
[364970183,1749367834145,-430.0,0.00019178,2]
[364970184,1749367834155,-400.0,0.00019178,2]
[364970185,1749367834165,-450.0,0.00019178,2]
[364970186,1749367834174,-354.61715715,0.00019178,2]
[364970187,1749367834184,-440.0,0.00019178,2]
[364970188,1749367834193,-440.0,0.00019178,2]
[364970189,1749367834203,-440.0,0.00019178,2]
[364970190,1749367834212,-400.0,0.00019178,2]
[364970191,1749367834222,-400.0,0.00019178,2]
[364970192,1749367834232,-1145.82,0.00019178,2]
[364970193,1749367834242,-469.10966085,0.00019178,2]
[364970194,1749367834251,-783.15,0.00019178,2]
[364970195,1749367834262,-783.15,0.00019178,2]
[364970196,1749367834272,-783.15,0.00019178,2]
[364970197,1749367834283,-783.15,0.00019178,2]